[Event "V Open Semana Santa Alicante 2021"]
[Site "Alicante"]
[Date "2021.04.01"]
[Round "2.9"]
[White "Hernandez Torralba, Jose Joaquin"]
[Black "Martinez Reyes, Pedro Ramon"]
[Result "0-1"]
[ECO "D56"]
[WhiteElo "2099"]
[BlackElo "2427"]
[Annotator "RC"]
[PlyCount "134"]
[EventDate "2021.03.31"]
[EventType "swiss"]
[EventCountry "ESP"]
[SourceTitle "playchess.com"]
[Source "ChessBase"]
[SourceQuality "1"]
[TimeControl "5400+30"]

1. c4 {[%emt 0:00:46]} e6 {[%emt 0:06:01]} 2. d4 {[%emt 0:01:12]} d5 {[%emt 0:00:05]} 3. Nc3 {[%emt 0:00:15]} Be7 {[%emt 0:00:05]} 4. Nf3 {[%emt 0:00:17]} Nf6 {[%emt 0:00:02]} 5. Bg5 {[%emt 0:00:16]} h6 {[%emt 0:00:06]} 6. Bh4 {[%emt 0:01:41]} O-O {[%emt 0:00:07]} 7. e3 {[%emt 0:00:21]} Ne4 {[%emt 0:01:15]} 8. Bxe7 {[%emt 0:00:27]} Qxe7 {[%emt 0:00:03]} 9. Rc1 {[%emt 0:00:12]} c6 {[%emt 0:00:58]} 10. Bd3 {[%emt 0:00:38]} Nxc3 {[%emt 0:00:04]} 11. Rxc3 {[%emt 0:00:09]} Nd7 {[%emt 0:00:42]} 12. O-O {[%emt 0:01:05]} dxc4 {[%emt 0:00:25]} 13. Bxc4 {[%emt 0:00:11]} b6 {[%emt 0:00:14]} 14. Bd3 {[%emt 0:00:37]} c5 {[%emt 0:00:11]} 15. Be4 {[%emt 0:00:09]} Rb8 {[%emt 0:00:02]} 16. Qa4 {[%emt 0:01:44]} a5 {[%emt 0:00:42]} 17. a3 {[%emt 0:12:01]} Bb7 {[%emt 0:13:35]} 18. Bxb7 {[%emt 0:00:57]} Rxb7 {[%emt 0:00:01]} 19. Qc2 {[%emt 0:00:13]} Rc7 {[%emt 0:27:30]} 20. Rd1 {[%emt 0:12:46]} Rfc8 {[%emt 0:01:07]} 21. d5 {[%emt 0:07:43]} exd5 {[%emt 0:01:32]} 22. Rxd5 {[%emt 0:00:07]} Nf6 {[%emt 0:00:35]} 23. Re5 {[%emt 0:02:08]} Qd8 {[%emt 0:01:46]} 24. h3 {[%emt 0:05:27]} Re7 {[%emt 0:18:49]} 25. Qf5 {[%emt 0:10:44]} Rxe5 {[%emt 0:06:51]} 26. Nxe5 {[%emt 0:00:57]} Qd1+ {[%emt 0:00:08]} 27. Kh2 {[%emt 0:00:08]} Rd8 {[%emt 0:00:05]} 28. Rd3 {[%emt 0:17:06]} Rxd3 {[%emt 0:00:04]} 29. Nxd3 {[%emt 0:00:19]} Qa4 {[%emt 0:02:40]} 30. Ne5 {[%emt 0:04:41]} Qe8 {[%emt 0:01:22]} 31. Nc4 {[%emt 0:01:10]} a4 {[%emt 0:03:21]} 32. Qf4 {[%emt 0:03:24]} b5 {[%emt 0:01:15]} 33. Nd6 {[%emt 0:01:24]} Qb8 {[%emt 0:01:34]} 34. Qe5 {[%emt 0:03:14]} Ne4 {[%emt 0:00:47]} 35. Qxe4 {[%emt 0:06:05]} Qxd6+ {[%emt 0:00:04]} 36. f4 {[%emt 0:03:13]} Qe6 {[%emt 0:01:29]} 37. Qf3 {[%emt 0:02:26]} g6 {[%emt 0:00:33]} 38. h4 {[%emt 0:01:51]} h5 {[%emt 0:00:11]} 39. e4 {[%emt 0:00:40]} Qb3 {[%emt 0:01:52]} 40. Qe2 {[%emt 0:00:36]} c4 {[%emt 0:01:20]} 41. e5 {[%emt 0:00:31]} Qd3 {[%emt 0:00:34]} 42. Qe1 {[%emt 0:00:31]} Qd4 {[%emt 0:00:10]} 43. Qg3 {[%emt 0:00:31]} Qd3 {[%emt 0:01:44]} 44. Qg5 {[%emt 0:00:30]} c3 {[%emt 0:01:22]} 45. bxc3 {[%emt 0:00:23]} Qxc3 {[%emt 0:00:05]} 46. e6 {[%emt 0:00:31]} fxe6 {[%emt 0:02:27]} 47. Qxg6+ {[%emt 0:00:07]} Kf8 {[%emt 0:00:14]} 48. Qxe6 {[%emt 0:00:39]} Qxa3 {[%emt 0:00:09]} 49. f5 {[%emt 0:00:35]} Qe7 {[%emt 0:00:39]} 50. Qh6+ {[%emt 0:00:31]} Qg7 {[%emt 0:00:28]} 51. Qd6+ {[%emt 0:00:41]} Qe7 {[%emt 0:00:11]} 52. Qf4 {[%emt 0:00:24]} Kf7 {[%emt 0:01:25]} 53. Qd4 {[%emt 0:00:36]} a3 {[%emt 0:01:20]} 54. Kh3 {[%emt 0:00:20]} b4 {[%emt 0:00:23]} 55. Qd1 {[%emt 0:00:36]} Qf6 {[%emt 0:02:40]} 56. Qxh5+ {[%emt 0:00:41]} Kf8 {[%emt 0:00:09]} 57. Qe2 {[%emt 0:00:32]} b3 {[%emt 0:00:17]} 58. Qb5 {[%emt 0:00:21]} a2 {[%emt 0:00:16]} 59. Qb4+ {[%emt 0:00:30]} Kg7 {[%emt 0:00:11]} 60. Qg4+ {[%emt 0:00:28]} Kh6 {[%emt 0:00:24]} 61. Qf4+ {[%emt 0:00:23]} Kh7 {[%emt 0:00:06]} 62. Qf3 {[%emt 0:00:48]} a1=Q {[%emt 0:00:28]} 63. Qh5+ {[%emt 0:00:14]} Kg8 {[%emt 0:00:32]} 64. Qe8+ {[%emt 0:00:06]} Qf8 {[%emt 0:00:25]} 65. Qg6+ {[%emt 0:00:36]} Qag7 {[%emt 0:00:09]} 66. Qe6+ {[%emt 0:00:09]} Qgf7 {[%emt 0:00:07]} 67. Qe3 {[%emt 0:00:09]} Qxf5+ {[%emt 0:00:06]} 0-1

[Event "V Open Semana Santa Alicante 2021"]
[Site "Alicante"]
[Date "2021.04.02"]
[Round "4.2"]
[White "Narciso Dublan, Marc"]
[Black "Plaskett, H James"]
[Result "1-0"]
[ECO "B20"]
[WhiteElo "2521"]
[BlackElo "2382"]
[Annotator "ChessBase"]
[PlyCount "63"]
[EventDate "2021.03.31"]
[EventType "swiss"]
[EventCountry "ESP"]
[SourceTitle "playchess.com"]
[Source "ChessBase"]
[SourceQuality "1"]
[TimeControl "5400+30"]

1. e4 {[%emt 0:00:00]} c5 {[%emt 0:01:15]} 2. Be2 {[%emt 0:00:01]} Nc6 {[%emt 0:01:24]} 3. f4 {[%emt 0:00:14]} e6 {[%emt 0:00:36]} 4. Nf3 {[%emt 0:00:32]} Nf6 {[%emt 0:01:00]} 5. d3 {[%emt 0:00:18]} d5 {[%emt 0:04:01]} 6. e5 {[%emt 0:00:52]} Nd7 {[%emt 0:00:05]} 7. O-O {[%emt 0:02:15]} g6 {[%emt 0:00:37]} 8. c3 {[%emt 0:05:15]} d4 {[%emt 0:05:47]} 9. Nbd2 {[%emt 0:04:54]} Be7 {[%emt 0:03:23]} 10. Ne4 {[%emt 0:02:59]} f5 {[%emt 0:00:27]} 11. exf6 {[%emt 0:01:45]} Nxf6 {[%emt 0:00:02]} 12. Nfg5 {[%emt 0:18:52]} O-O {[%emt 0:01:33]} 13. Qb3 {[%emt 0:07:52]} Nxe4 {[%emt 0:09:22]} 14. Nxe4 {[%emt 0:00:48]} Qd5 {[%emt 0:01:55]} 15. Bd2 {[%emt 0:04:49]} Qxb3 {[%emt 0:02:38]} 16. axb3 {[%emt 0:00:07]} Bd7 {[%emt 0:00:25]} 17. Rf2 {[%emt 0:11:13]} Rad8 {[%emt 0:04:53]} 18. c4 {[%emt 0:02:23]} a6 {[%emt 0:10:43]} 19. Bf1 {[%emt 0:04:21]} h6 {[%emt 0:01:56]} 20. g3 {[%emt 0:01:20]} Kg7 {[%emt 0:02:24]} 21. Bg2 {[%emt 0:01:26]} e5 {[%emt 0:06:53]} 22. Re1 {[%emt 0:01:35]} Rde8 {[%emt 0:03:20]} 23. h3 {[%emt 0:07:13]} Bf5 {[%emt 0:13:24]} 24. Rfe2 {[%emt 0:01:14]} Rd8 {[%emt 0:11:46]} 25. fxe5 {[%emt 0:03:20]} Nxe5 {[%emt 0:00:42]} 26. Nf2 {[%emt 0:00:52]} Bd6 {[%emt 0:01:39]} 27. Rxe5 {[%emt 0:00:22]} Bxe5 {[%emt 0:00:05]} 28. Rxe5 {[%emt 0:00:05]} Rfe8 {[%emt 0:00:33]} 29. Rxe8 {[%emt 0:04:29]} Rxe8 {[%emt 0:00:02]} 30. Ne4 {[%emt 0:03:45]} b6 {[%emt 0:08:34]} 31. b4 {[%emt 0:00:28]} g5 {[%emt 0:00:53]} 32. Kf2 {[%emt 0:05:20]} 1-0

[Event "V Open Semana Santa Alicante 2021"]
[Site "Alicante"]
[Date "2021.04.02"]
[Round "4.3"]
[White "Camacho Collados, Marcos"]
[Black "Del Rio De Angelis, Salvador G."]
[Result "0-1"]
[ECO "A46"]
[WhiteElo "2400"]
[BlackElo "2510"]
[Annotator "ChessBase"]
[PlyCount "105"]
[EventDate "2021.03.31"]
[EventType "swiss"]
[EventCountry "ESP"]
[SourceTitle "playchess.com"]
[Source "ChessBase"]
[SourceQuality "1"]
[TimeControl "5400+30"]

1. d4 {[%emt 0:00:13]} Nf6 {[%emt 0:00:00]} 2. Nf3 {[%emt 0:00:13]} d6 {[%emt 0:00:09]} 3. Nc3 {[%emt 0:01:36]} Bf5 {[%emt 0:00:51]} 4. Nh4 {[%emt 0:04:43]} Bd7 {[%emt 0:01:36]} 5. e4 {[%emt 0:00:45]} e5 {[%emt 0:00:07]} 6. Nf3 {[%emt 0:02:04]} Nc6 {[%emt 0:00:20]} 7. d5 {[%emt 0:02:46]} Ne7 {[%emt 0:00:24]} 8. a4 {[%emt 0:07:46]} Ng6 {[%emt 0:00:59]} 9. h4 {[%emt 0:03:48]} Be7 {[%emt 0:01:09]} 10. h5 {[%emt 0:01:01]} Nf8 {[%emt 0:00:26]} 11. h6 {[%emt 0:01:02]} g6 {[%emt 0:03:00]} 12. Be2 {[%emt 0:11:17]} a6 {[%emt 0:03:58]} 13. Nh2 {[%emt 0:07:25]} c6 {[%emt 0:07:09]} 14. Be3 {[%emt 0:04:46]} Bc8 {[%emt 0:08:46]} 15. O-O {[%emt 0:09:55]} N8d7 {[%emt 0:00:47]} 16. a5 {[%emt 0:04:35]} O-O {[%emt 0:00:26]} 17. Qd2 {[%emt 0:06:18]} Qc7 {[%emt 0:02:21]} 18. f4 {[%emt 0:04:25]} exf4 {[%emt 0:06:02]} 19. Bxf4 {[%emt 0:01:21]} b5 {[%emt 0:15:22]} 20. axb6 {[%emt 0:02:51]} Qxb6+ {[%emt 0:00:06]} 21. Be3 {[%emt 0:00:52]} Qc7 {[%emt 0:02:59]} 22. Bg5 {[%emt 0:04:05]} cxd5 {[%emt 0:00:27]} 23. exd5 {[%emt 0:00:17]} Qd8 {[%emt 0:00:30]} 24. Nf3 {[%emt 0:05:03]} Ng4 {[%emt 0:02:49]} 25. Ne4 {[%emt 0:07:07]} f5 {[%emt 0:12:12]} 26. Nd4 {[%emt 0:01:40]} Ndf6 {[%emt 0:08:03]} 27. Nxf6+ {[%emt 0:01:15]} Bxf6 {[%emt 0:00:25]} 28. Bxf6 {[%emt 0:00:23]} Nxf6 {[%emt 0:00:05]} 29. Bf3 {[%emt 0:01:34]} Bd7 {[%emt 0:01:57]} 30. Rfe1 {[%emt 0:02:02]} Qb6 {[%emt 0:00:45]} 31. c3 {[%emt 0:00:42]} Rae8 {[%emt 0:00:46]} 32. Rxe8 {[%emt 0:00:47]} Rxe8 {[%emt 0:00:19]} 33. Re1 {[%emt 0:00:10]} Re5 {[%emt 0:02:57]} 34. Kh1 {[%emt 0:00:37]} Rxe1+ {[%emt 0:03:34]} 35. Qxe1 {[%emt 0:00:01]} Qxb2 {[%emt 0:00:13]} 36. Nc6 {[%emt 0:02:01]} Qc2 {[%emt 0:05:29]} 37. Kh2 {[%emt 0:00:05]} Ne4 {[%emt 0:04:56]} 38. Qh4 {[%emt 0:00:07]} g5 {[%emt 0:00:05]} 39. Bxe4 {[%emt 0:00:53]} Qd2 {[%emt 0:00:05]} 40. Qg3 {[%emt 0:00:48]} fxe4 {[%emt 0:00:07]} 41. Qxd6 {[%emt 0:00:25]} Qf4+ {[%emt 0:01:32]} 42. Qxf4 {[%emt 0:00:02]} gxf4 {[%emt 0:00:06]} 43. Ne5 {[%emt 0:01:06]} Bf5 {[%emt 0:00:47]} 44. d6 {[%emt 0:00:25]} Kf8 {[%emt 0:01:18]} 45. c4 {[%emt 0:00:35]} a5 {[%emt 0:00:05]} 46. c5 {[%emt 0:00:25]} a4 {[%emt 0:00:05]} 47. c6 {[%emt 0:00:35]} a3 {[%emt 0:00:15]} 48. c7 {[%emt 0:00:36]} Ke8 {[%emt 0:00:09]} 49. g4 {[%emt 0:00:31]} fxg3+ {[%emt 0:00:18]} 50. Kxg3 {[%emt 0:00:02]} a2 {[%emt 0:00:09]} 51. Kf4 {[%emt 0:00:07]} Bh3 {[%emt 0:00:25]} 52. Kg3 {[%emt 0:00:58]} Bc8 {[%emt 0:00:22]} 53. Ng4 {[%emt 0:00:21]} 0-1

[Event "V Open Semana Santa Alicante 2021"]
[Site "Alicante"]
[Date "2021.04.02"]
[Round "4.4"]
[White "Cuenca Jimenez, Jose Fernando"]
[Black "Carbonell Sancho, Marc"]
[Result "1-0"]
[ECO "E70"]
[WhiteElo "2506"]
[BlackElo "2330"]
[Annotator "ChessBase"]
[PlyCount "77"]
[EventDate "2021.03.31"]
[EventType "swiss"]
[EventCountry "ESP"]
[SourceTitle "playchess.com"]
[Source "ChessBase"]
[SourceQuality "1"]
[TimeControl "5400+30"]

1. d4 {[%emt 0:00:25]} Nf6 {[%emt 0:00:00]} 2. c4 {[%emt 0:00:32]} g6 {[%emt 0:00:00]} 3. Nc3 {[%emt 0:00:10]} Bg7 {[%emt 0:00:06]} 4. e4 {[%emt 0:00:09]} O-O {[%emt 0:00:32]} 5. Be3 {[%emt 0:03:19]} c6 {[%emt 0:00:06]} 6. h3 {[%emt 0:28:52]} d5 {[%emt 0:00:28]} 7. cxd5 {[%emt 0:01:32]} cxd5 {[%emt 0:02:15]} 8. e5 {[%emt 0:00:03]} Ne4 {[%emt 0:07:36]} 9. Bd3 {[%emt 0:00:13]} Nxc3 {[%emt 0:01:10]} 10. bxc3 {[%emt 0:00:04]} Nc6 {[%emt 0:06:53]} 11. Nf3 {[%emt 0:07:46]} f6 {[%emt 0:02:10]} 12. exf6 {[%emt 0:01:50]} exf6 {[%emt 0:00:07]} 13. O-O {[%emt 0:09:13]} Be6 {[%emt 0:00:10]} 14. Re1 {[%emt 0:01:14]} Qd7 {[%emt 0:03:02]} 15. Qc2 {[%emt 0:07:14]} Rac8 {[%emt 0:02:13]} 16. Rab1 {[%emt 0:00:15]} Na5 {[%emt 0:04:01]} 17. h4 {[%emt 0:05:35]} Nc4 {[%emt 0:09:30]} 18. Rb3 {[%emt 0:06:50]} Nd6 {[%emt 0:15:44]} 19. Bf4 {[%emt 0:11:45]} Ne4 {[%emt 0:06:46]} 20. Nd2 {[%emt 0:00:06]} f5 {[%emt 0:01:48]} 21. Nf3 {[%emt 0:01:22]} b6 {[%emt 0:04:48]} 22. Ne5 {[%emt 0:01:42]} Qe7 {[%emt 0:00:59]} 23. g3 {[%emt 0:05:33]} Nd6 {[%emt 0:06:10]} 24. Qe2 {[%emt 0:02:01]} Ne4 {[%emt 0:00:22]} 25. Qb2 {[%emt 0:03:14]} Nd6 {[%emt 0:02:27]} 26. Qa3 {[%emt 0:00:45]} Rfd8 {[%emt 0:02:42]} 27. Bb5 {[%emt 0:01:08]} Bf7 {[%emt 0:06:32]} 28. Re3 {[%emt 0:00:16]} Qf8 {[%emt 0:02:59]} 29. Ba6 {[%emt 0:00:47]} Rc7 {[%emt 0:01:14]} 30. Bf1 {[%emt 0:00:32]} Nc4 {[%emt 0:04:13]} 31. Nxc4 {[%emt 0:00:27]} Rxc4 {[%emt 0:00:03]} 32. Qxa7 {[%emt 0:00:31]} Rc6 {[%emt 0:02:23]} 33. Rxb6 {[%emt 0:00:30]} Ra8 {[%emt 0:00:01]} 34. Qxa8 {[%emt 0:00:31]} Rxb6 {[%emt 0:00:23]} 35. Qxf8+ {[%emt 0:00:20]} Bxf8 {[%emt 0:00:02]} 36. a4 {[%emt 0:00:16]} Rb3 {[%emt 0:00:35]} 37. a5 {[%emt 0:00:24]} Ra3 {[%emt 0:00:35]} 38. a6 {[%emt 0:00:03]} Kg7 {[%emt 0:00:39]} 39. Bb8 {[%emt 0:00:55]} 1-0

[Event "V Open Semana Santa Alicante 2021"]
[Site "Alicante"]
[Date "2021.04.02"]
[Round "4.5"]
[White "Lopez Varela, Pablo"]
[Black "Movsziszian, Karen"]
[Result "0-1"]
[ECO "B40"]
[WhiteElo "2209"]
[BlackElo "2471"]
[Annotator "ChessBase"]
[PlyCount "87"]
[EventDate "2021.03.31"]
[EventType "swiss"]
[EventCountry "ESP"]
[SourceTitle "playchess.com"]
[Source "ChessBase"]
[SourceQuality "1"]
[TimeControl "5400+30"]

1. e4 {[%emt 0:00:00]} c5 {[%emt 0:00:09]} 2. Nf3 {[%emt 0:01:28]} e6 {[%emt 0:00:16]} 3. g3 {[%emt 0:02:12]} Nc6 {[%emt 0:03:34]} 4. Bg2 {[%emt 0:00:27]} Nf6 {[%emt 0:00:17]} 5. d3 {[%emt 0:01:19]} d6 {[%emt 0:00:16]} 6. O-O {[%emt 0:00:07]} Be7 {[%emt 0:02:50]} 7. Re1 {[%emt 0:01:46]} O-O {[%emt 0:01:37]} 8. c3 {[%emt 0:02:21]} e5 {[%emt 0:04:08]} 9. h3 {[%emt 0:11:02]} b6 {[%emt 0:01:49]} 10. d4 {[%emt 0:04:33]} Qc7 {[%emt 0:01:15]} 11. dxe5 {[%emt 0:03:33]} dxe5 {[%emt 0:01:47]} 12. Nfd2 {[%emt 0:01:13]} Be6 {[%emt 0:00:34]} 13. Nf1 {[%emt 0:05:53]} Rfd8 {[%emt 0:03:55]} 14. Qe2 {[%emt 0:00:12]} h6 {[%emt 0:02:32]} 15. Ne3 {[%emt 0:01:47]} Bf8 {[%emt 0:00:01]} 16. Na3 {[%emt 0:06:58]} a6 {[%emt 0:00:43]} 17. Bd2 {[%emt 0:00:46]} b5 {[%emt 0:00:31]} 18. Red1 {[%emt 0:01:19]} c4 {[%emt 0:08:42]} 19. Nac2 {[%emt 0:00:25]} Rd7 {[%emt 0:17:01]} 20. Be1 {[%emt 0:04:40]} Rad8 {[%emt 0:00:02]} 21. Rxd7 {[%emt 0:00:10]} Rxd7 {[%emt 0:00:03]} 22. Rd1 {[%emt 0:00:25]} Qd8 {[%emt 0:00:42]} 23. f4 {[%emt 0:07:27]} Rxd1 {[%emt 0:03:14]} 24. Qxd1 {[%emt 0:01:11]} Qxd1 {[%emt 0:04:40]} 25. Nxd1 {[%emt 0:00:05]} g6 {[%emt 0:04:00]} 26. Nde3 {[%emt 0:05:50]} exf4 {[%emt 0:02:23]} 27. gxf4 {[%emt 0:00:08]} Nh5 {[%emt 0:00:17]} 28. f5 {[%emt 0:04:21]} Bc8 {[%emt 0:01:36]} 29. Nd5 {[%emt 0:09:41]} Ne5 {[%emt 0:04:48]} 30. f6 {[%emt 0:08:26]} Bb7 {[%emt 0:06:12]} 31. Nce3 {[%emt 0:01:30]} Bc5 {[%emt 0:00:42]} 32. Bf2 {[%emt 0:03:52]} Nd3 {[%emt 0:00:10]} 33. Bf3 {[%emt 0:02:16]} Bxd5 {[%emt 0:00:28]} 34. exd5 {[%emt 0:00:06]} Nxf6 {[%emt 0:00:08]} 35. Kf1 {[%emt 0:00:51]} Nxb2 {[%emt 0:07:55]} 36. Ng4 {[%emt 0:03:35]} Nxg4 {[%emt 0:00:54]} 37. Bxc5 {[%emt 0:00:17]} Nh2+ {[%emt 0:00:03]} 38. Kg2 {[%emt 0:00:05]} Nxf3 {[%emt 0:00:36]} 39. Kxf3 {[%emt 0:00:02]} Nd3 {[%emt 0:00:07]} 40. Be3 {[%emt 0:00:31]} h5 {[%emt 0:03:48]} 41. d6 {[%emt 0:00:31]} Kf8 {[%emt 0:00:03]} 42. Ke4 {[%emt 0:00:21]} Ke8 {[%emt 0:00:01]} 43. Kd5 {[%emt 0:00:06]} Kd7 {[%emt 0:00:01]} 44. Kd4 0-1

[Event "V Open Semana Santa Alicante 2021"]
[Site "Alicante"]
[Date "2021.04.02"]
[Round "4.6"]
[White "Guardiola Guillot, Lucas"]
[Black "Martinez Reyes, Pedro Ramon"]
[Result "1/2-1/2"]
[ECO "A14"]
[WhiteElo "2017"]
[BlackElo "2427"]
[Annotator "ChessBase"]
[PlyCount "210"]
[EventDate "2021.03.31"]
[EventType "swiss"]
[EventCountry "ESP"]
[SourceTitle "playchess.com"]
[Source "ChessBase"]
[SourceQuality "1"]
[TimeControl "5400+30"]

1. c4 {[%emt 0:00:00]} e6 {[%emt 0:01:40]} 2. g3 {[%emt 0:00:00]} d5 {[%emt 0:00:04]} 3. Bg2 {[%emt 0:00:00]} Nf6 {[%emt 0:00:04]} 4. Nf3 {[%emt 0:00:18]} Be7 {[%emt 0:00:03]} 5. O-O {[%emt 0:00:11]} O-O {[%emt 0:00:03]} 6. b3 {[%emt 0:00:10]} c5 {[%emt 0:01:25]} 7. cxd5 {[%emt 0:00:23]} Nxd5 {[%emt 0:00:06]} 8. d4 {[%emt 0:00:09]} Nc6 {[%emt 0:01:12]} 9. Bb2 {[%emt 0:03:26]} cxd4 {[%emt 0:10:56]} 10. Nxd4 {[%emt 0:03:27]} Bd7 {[%emt 0:01:09]} 11. Nxc6 {[%emt 0:09:44]} Bxc6 {[%emt 0:00:52]} 12. e4 {[%emt 0:00:07]} Nb4 {[%emt 0:01:38]} 13. Qg4 {[%emt 0:00:11]} Bf6 {[%emt 0:04:45]} 14. e5 {[%emt 0:01:51]} Be7 {[%emt 0:00:06]} 15. Rd1 {[%emt 0:00:17]} Qc7 {[%emt 0:07:33]} 16. Nc3 {[%emt 0:04:08]} Bxg2 {[%emt 0:01:10]} 17. Kxg2 {[%emt 0:00:12]} Rfd8 {[%emt 0:00:33]} 18. Qe4 {[%emt 0:09:29]} a6 {[%emt 0:07:29]} 19. a3 {[%emt 0:12:56]} Nc6 {[%emt 0:00:20]} 20. Ne2 {[%emt 0:00:27]} Qb6 {[%emt 0:04:10]} 21. b4 {[%emt 0:06:34]} a5 {[%emt 0:00:34]} 22. Bc3 {[%emt 0:00:08]} axb4 {[%emt 0:00:12]} 23. axb4 {[%emt 0:00:49]} Rxa1 {[%emt 0:01:15]} 24. Rxa1 {[%emt 0:00:09]} Qb5 {[%emt 0:00:19]} 25. Ra2 {[%emt 0:05:48]} h6 {[%emt 0:01:12]} 26. f3 {[%emt 0:02:04]} Bf8 {[%emt 0:04:10]} 27. Rb2 {[%emt 0:05:00]} Rd1 {[%emt 0:01:36]} 28. f4 {[%emt 0:08:58]} Rd3 {[%emt 0:10:10]} 29. Be1 {[%emt 0:03:12]} Ne7 {[%emt 0:03:09]} 30. Bf2 {[%emt 0:03:19]} Nc6 {[%emt 0:08:43]} 31. Be1 {[%emt 0:01:53]} Rd8 {[%emt 0:04:55]} 32. Nc3 {[%emt 0:01:59]} Qb6 {[%emt 0:00:35]} 33. Bf2 {[%emt 0:01:12]} Qc7 {[%emt 0:00:07]} 34. Na4 {[%emt 0:01:39]} Rd5 {[%emt 0:03:33]} 35. b5 {[%emt 0:02:35]} Ne7 {[%emt 0:01:53]} 36. Rc2 {[%emt 0:00:56]} Qa5 {[%emt 0:01:01]} 37. Bc5 {[%emt 0:05:15]} Qxb5 {[%emt 0:01:10]} 38. Bxe7 {[%emt 0:00:09]} Bxe7 {[%emt 0:00:05]} 39. Nc3 {[%emt 0:00:05]} Qd3 {[%emt 0:00:12]} 40. Qxd3 {[%emt 0:00:48]} Rxd3 {[%emt 0:00:02]} 41. Ne4 {[%emt 0:01:34]} b5 {[%emt 0:04:45]} 42. Rc8+ {[%emt 0:00:46]} Rd8 {[%emt 0:04:27]} 43. Rc7 {[%emt 0:01:57]} Bf8 {[%emt 0:00:08]} 44. Rb7 {[%emt 0:00:15]} b4 {[%emt 0:00:04]} 45. Kf2 {[%emt 0:00:17]} Ra8 {[%emt 0:00:53]} 46. Nd6 {[%emt 0:01:56]} Bxd6 {[%emt 0:00:22]} 47. exd6 {[%emt 0:00:01]} Rd8 {[%emt 0:00:00]} 48. Rxb4 {[%emt 0:00:30]} Rxd6 {[%emt 0:00:04]} 49. h4 {[%emt 0:00:08]} h5 {[%emt 0:01:39]} 50. Rb5 {[%emt 0:00:29]} g6 {[%emt 0:00:01]} 51. Ra5 {[%emt 0:00:16]} Kg7 {[%emt 0:00:01]} 52. Rb5 {[%emt 0:00:09]} Kf6 {[%emt 0:00:01]} 53. Rb7 {[%emt 0:00:32]} Rd3 {[%emt 0:00:24]} 54. Rc7 {[%emt 0:00:17]} Ra3 {[%emt 0:00:09]} 55. Rb7 {[%emt 0:00:12]} Ra2+ {[%emt 0:03:26]} 56. Kf3 {[%emt 0:00:04]} Rc2 {[%emt 0:00:16]} 57. Ra7 {[%emt 0:00:10]} Rb2 {[%emt 0:00:04]} 58. Rc7 {[%emt 0:00:07]} Rb3+ {[%emt 0:00:00]} 59. Kf2 {[%emt 0:00:07]} Rb8 {[%emt 0:02:15]} 60. Kf3 {[%emt 0:00:16]} Re8 {[%emt 0:00:02]} 61. Ke4 {[%emt 0:00:39]} Re7 {[%emt 0:00:28]} 62. Rc5 {[%emt 0:00:51]} Ra7 {[%emt 0:00:03]} 63. Rc3 {[%emt 0:01:19]} Ra5 {[%emt 0:00:27]} 64. Rb3 {[%emt 0:00:16]} Ra1 {[%emt 0:00:48]} 65. Rc3 {[%emt 0:00:37]} Rb1 {[%emt 0:00:27]} 66. Ra3 {[%emt 0:00:11]} Re1+ {[%emt 0:00:16]} 67. Kf3 {[%emt 0:00:46]} Kf5 {[%emt 0:00:07]} 68. Ra5+ {[%emt 0:01:44]} e5 {[%emt 0:00:14]} 69. fxe5 {[%emt 0:00:11]} Rxe5 {[%emt 0:00:03]} 70. Ra4 {[%emt 0:00:26]} f6 {[%emt 0:00:06]} 71. Rf4+ {[%emt 0:00:32]} Ke6 {[%emt 0:00:04]} 72. Ra4 {[%emt 0:00:08]} Rb5 {[%emt 0:00:18]} 73. Re4+ {[%emt 0:00:40]} Re5 {[%emt 0:00:16]} 74. Ra4 {[%emt 0:00:05]} Rc5 {[%emt 0:00:05]} 75. Re4+ {[%emt 0:00:09]} Kd5 {[%emt 0:01:33]} 76. Re8 {[%emt 0:00:21]} Rc3+ {[%emt 0:00:37]} 77. Kf4 {[%emt 0:00:48]} Rc4+ {[%emt 0:03:17]} 78. Kf3 {[%emt 0:00:09]} Rg4 {[%emt 0:00:08]} 79. Re7 {[%emt 0:01:09]} Kd6 {[%emt 0:00:06]} 80. Re8 {[%emt 0:00:25]} Kd7 {[%emt 0:00:02]} 81. Ra8 {[%emt 0:01:07]} Rd4 {[%emt 0:00:36]} 82. Rg8 {[%emt 0:00:10]} Rg4 {[%emt 0:01:44]} 83. Ra8 {[%emt 0:00:07]} Ke7 {[%emt 0:01:32]} 84. Ra7+ {[%emt 0:00:05]} Ke6 {[%emt 0:00:05]} 85. Ra6+ {[%emt 0:00:06]} Kf7 {[%emt 0:00:00]} 86. Ra7+ {[%emt 0:00:36]} Kf8 {[%emt 0:00:01]} 87. Ra8+ {[%emt 0:00:10]} Kg7 {[%emt 0:00:01]} 88. Ra7+ {[%emt 0:00:08]} Kh6 {[%emt 0:00:16]} 89. Ra6 {[%emt 0:00:06]} f5 {[%emt 0:00:08]} 90. Rb6 {[%emt 0:00:07]} Kg7 {[%emt 0:00:19]} 91. Rb7+ {[%emt 0:00:10]} Kf6 {[%emt 0:00:01]} 92. Rb6+ {[%emt 0:00:15]} Ke5 {[%emt 0:00:34]} 93. Rb5+ {[%emt 0:00:06]} Kd4 {[%emt 0:00:25]} 94. Rb4+ {[%emt 0:00:35]} Ke5 {[%emt 0:00:21]} 95. Rb5+ Kf6 96. Rb6+ {[%emt 0:00:23]} Kg7 {[%emt 0:00:00]} 97. Rb7+ {[%emt 0:00:05]} Kh6 {[%emt 0:00:02]} 98. Ra7 {[%emt 0:00:59]} f4 {[%emt 0:00:29]} 99. gxf4 {[%emt 0:00:47]} Rxh4 {[%emt 0:00:04]} 100. Ra6 {[%emt 0:00:07]} Kh7 {[%emt 0:00:44]} 101. Ra7+ {[%emt 0:00:09]} Kg8 {[%emt 0:00:48]} 102. Ra8+ {[%emt 0:00:19]} Kg7 {[%emt 0:01:16]} 103. Ra7+ {[%emt 0:00:06]} Kh6 {[%emt 0:00:01]} 104. Ra6 {[%emt 0:00:07]} Rh1 {[%emt 0:00:55]} 105. Kg2 {[%emt 0:00:18]} Rh4 1/2-1/2